[Event "Germany Countries-chT Youth 2022"]
[Site "Wiesbaden"]
[Date "2022.10.03"]
[Round "5"]
[White "Glowiak, Alexandra"]
[Black "Buchholz, Maja"]
[Result "0-1"]
[ECO "C06"]
[WhiteElo "1602"]
[BlackElo "1765"]
[Annotator "NA RC COMBH"]
[PlyCount "123"]
[EventDate "2022.09.28"]
[EventType "team-tourn"]
[EventRounds "7"]
[EventCountry "GER"]
[SourceTitle "playchess.com"]
[Source "ChessBase"]
[SourceQuality "1"]
[TimeControl "40/5400+30:1800+30"]

1. e4 {[%emt 0:00:03]} e6 {[%emt 0:00:06]} 2. d4 {[%emt 0:00:05]} d5 {[%emt 0:00:05]} 3. Nd2 {[%emt 0:00:05]} Nf6 {[%emt 0:00:05]} 4. e5 {[%emt 0:00:09]} Nfd7 {[%emt 0:00:06]} 5. Bd3 {[%emt 0:00:26]} c5 {[%emt 0:00:06]} 6. c3 {[%emt 0:00:06]} Nc6 {[%emt 0:00:05]} 7. Ne2 {[%emt 0:00:14]} cxd4 {[%emt 0:00:22]} 8. cxd4 {[%emt 0:00:12]} f6 {[%emt 0:00:08]} 9. exf6 {[%emt 0:00:08]} Nxf6 {[%emt 0:00:08]} 10. O-O {[%emt 0:00:40]} Bd6 {[%emt 0:00:07]} 11. Nf3 {[%emt 0:00:27]} Qc7 {[%emt 0:00:07]} 12. Nc3 {[%emt 0:00:10]} a6 {[%emt 0:00:07]} 13. Bg5 {[%emt 0:00:43]} O-O {[%emt 0:00:08]} 14. Bh4 {[%emt 0:00:44]} Nh5 {[%emt 0:00:25]} 15. a3 {[%emt 0:16:31]} Bd7 {[%emt 0:01:58]} 16. Re1 {[%emt 0:21:04]} Nf4 {[%emt 0:11:27]} 17. Rc1 {[%emt 0:05:35]} Nxd3 {[%emt 0:09:27]} 18. Qxd3 {[%emt 0:00:19]} Rxf3 {[%emt 0:27:43]} 19. Qxf3 {[%emt 0:08:00]} Nxd4 {[%emt 0:01:07]} 20. Qd3 {[%emt 0:02:01]} Nb3 {[%emt 0:01:13]} 21. Rc2 {[%emt 0:06:20]} Rc8 {[%emt 0:02:33]} 22. Rce2 {[%emt 0:12:11]} Bxh2+ {[%emt 0:04:55]} 23. Kh1 {[%emt 0:01:41]} Nc5 {[%emt 0:00:46]} 24. Qd4 {[%emt 0:02:33]} Qf4 {[%emt 0:05:15]} 25. Qxf4 {[%emt 0:01:04]} Bxf4 {[%emt 0:00:05]} 26. f3 {[%emt 0:03:48]} Nd3 {[%emt 0:04:28]} 27. Rd1 {[%emt 0:02:43]} Nc1 {[%emt 0:10:34]} 28. Ree1 {[%emt 0:01:56]} Nb3 {[%emt 0:00:32]} 29. Bf2 {[%emt 0:00:55]} Kf7 {[%emt 0:01:05]} 30. Re2 {[%emt 0:00:44]} b5 {[%emt 0:02:37]} 31. g3 {[%emt 0:01:02]} Bc1 {[%emt 0:01:40]} 32. Rc2 {[%emt 0:00:50]} Bg5 {[%emt 0:01:35]} 33. Re2 {[%emt 0:07:11]} Bf6 {[%emt 0:00:52]} 34. Ne4 {[%emt 0:03:43]} Be7 {[%emt 0:03:59]} 35. Re3 {[%emt 0:01:12]} Na5 {[%emt 0:01:09]} 36. Nc3 {[%emt 0:00:52]} Nc4 {[%emt 0:00:55]} 37. Re2 {[%emt 0:00:08]} Nxb2 {[%emt 0:01:22]} 38. Rxb2 {[%emt 0:01:29]} Rxc3 {[%emt 0:00:04]} 39. a4 {[%emt 0:00:17]} Rxf3 {[%emt 0:00:53]} 40. axb5 {[%emt 0:00:25]} Bxb5 {[%emt 0:00:31]} 41. Kg2 {[%emt 0:31:08]} Rc3 {[%emt 0:30:35]} 42. Rh1 {[%emt 0:00:00]} h6 {[%emt 0:00:00]} 43. Bd4 {[%emt 0:00:00]} Rc4 {[%emt 0:00:00]} 44. Rf2+ {[%emt 0:00:00]} Kg6 {[%emt 0:00:00]} 45. Bb2 {[%emt 0:00:00]} Re4 {[%emt 0:00:00]} 46. Kf3 {[%emt 0:00:00]} a5 {[%emt 0:00:00]} 47. Rc2 {[%emt 0:00:00]} Bd6 {[%emt 0:00:00]} 48. Rc8 {[%emt 0:00:00]} a4 {[%emt 0:00:00]} 49. Rg8 {[%emt 0:00:00]} Be5 {[%emt 0:00:00]} 50. Bxe5 {[%emt 0:00:00]} Rxe5 {[%emt 0:00:00]} 51. Rb1 {[%emt 0:00:00]} d4 {[%emt 0:00:00]} 52. Rb8 {[%emt 0:00:00]} Re3+ {[%emt 0:00:00]} 53. Kf2 Bc4 {[%emt 0:00:00]} 54. R1b4 {[%emt 0:00:00]} Rb3 {[%emt 0:00:00]} 55. Rxb3 {[%emt 0:00:00]} Bxb3 {[%emt 0:00:00]} 56. Kf3 {[%emt 0:00:00]} Bd5+ {[%emt 0:00:00]} 57. Kf4 {[%emt 0:00:00]} a3 {[%emt 0:00:00]} 58. Rb4 {[%emt 0:00:00]} a2 {[%emt 0:00:00]} 59. Ra4 {[%emt 0:00:00]} Kf6 {[%emt 0:00:00]} 60. Ra6 {[%emt 0:00:00]} h5 {[%emt 0:00:13]} 61. g4 {[%emt 0:00:00]} h4 {[%emt 0:00:43]} 62. g5+ {[%emt 0:00:00]} 0-1

[Event "Germany Countries-chT Youth 2022"]
[Site "Wiesbaden"]
[Date "2022.10.03"]
[Round "5"]
[White "Vranckx, Oscar"]
[Black "Möller, Maurin"]
[Result "0-1"]
[ECO "B40"]
[WhiteElo "1583"]
[BlackElo "1936"]
[Annotator "TA"]
[PlyCount "58"]
[EventDate "2022.09.28"]
[EventType "team-tourn"]
[EventRounds "7"]
[EventCountry "GER"]
[SourceTitle "playchess.com"]
[Source "ChessBase"]
[SourceQuality "1"]
[TimeControl "40/5400+30:1800+30"]

{[%evp 24,58,43,43,45,45,77,45,53,41,160,144,172,154,130,93,87,27,36,2,106,49,53,-181,-171,-184,-184,-280,-276,-263,-258,-443,0,-29996,-29997,-29997,-29998]} 1. e4 {[%emt 0:00:05]} c5 {[%emt 0:00:08]} 2. Nf3 {[%emt 0:00:04]} e6 {[%emt 0:00:05]} 3. d4 {[%emt 0:00:12]} cxd4 {[%emt 0:00:03]} 4. Nxd4 {[%emt 0:00:17]} Nf6 {[%emt 0:00:05]} 5. Nc3 {[%emt 0:00:07]} Nc6 {[%emt 0:00:02]} 6. Ndb5 {[%emt 0:00:16]} Bb4 {[%emt 0:00:11]} 7. a3 {[%emt 0:00:12]} Bxc3+ {[%emt 0:00:04]} 8. Nxc3 {[%emt 0:00:08]} d5 {[%emt 0:00:09]} 9. exd5 {[%emt 0:00:07]} exd5 {[%emt 0:00:05]} 10. Bd3 {[%emt 0:00:06]} O-O {[%emt 0:00:05]} 11. O-O {[%emt 0:00:04]} d4 {[%emt 0:04:47] 11...Bg4 is the modern continuation.} 12. Ne2 {[%emt 0:00:05]} Re8 {[%emt 0:05:16]} 13. Bg5 {[%emt 0:01:51][%cal Bc1g5,Bg5h4,Bh4g3][%mdl 32]} h6 {[%emt 0:01:01] B45: Sicilian Four Knights.} 14. Bh4 {[%emt 0:00:14]} a6 {[%emt 0:10:12]} 15. Qd2 {[%emt 0:02:13] [#]} g5 $146 {[%emt 0:09:05] White is slightly better.} ({Predecessor:} 15... Ne4 16. Bxe4 Qxh4 17. Bxc6 bxc6 18. Qxd4 Qg5 19. Ng3 Be6 20. Rad1 c5 21. Qc3 c4 {1-0 (57) Kocak,C (1892)-Yagci,Y (1671) Konya 2018}) 16. Bg3 {[%emt 0:00:22]} ({Much worse is} 16. Bxg5 hxg5 17. Qxg5+ Kf8 $17) 16... Kg7 {[%emt 0:01:23]} (16... Ne4 $14 17. Bxe4 Rxe4) 17. f4 $16 {[%emt 0:00:59]} Nd5 {[%emt 0:00:53]} 18. fxg5 {[%emt 0:01:29]} hxg5 {[%emt 0:00:46]} 19. h4 {[%emt 0:03:20] Hoping for Bc4.} Ne3 {[%emt 0:11:30] Inhibits Bc4.} 20. hxg5 {[%emt 0:01:43]} ({Better is} 20. Rf2 $1 $16) 20... Qxg5 $11 {[%emt 0:03:59]} 21. Rf2 {[%emt 0:00:57]} Bg4 {[%emt 0:03:55] [#]} (21... Rh8 $11 22. Rf3 Qh5) 22. Raf1 {[%emt 0:04:17]} (22. Nxd4 $1 $16 {[%mdl 512]} Nxd4 23. Bf4) 22... f5 $14 {[%emt 0:11:25] [#]} (22... Bxe2 $2 23. Rxf7+ Kh8 24. Qxe2 Nxf1 25. Qxf1 $18 (25. Rh7+ Kg8 $16)) 23. Nf4 {[%emt 0:02:37]} (23. Rxf5 $1 $14 Bxf5 24. Rxf5 $1) 23... Qh6 $19 {[%emt 0:07:47]} 24. Re1 {[%emt 0:04:55]} Rh8 $40 {[%emt 0:03:38][%csl Gh8][%cal Rh6h1][%mdl 128] White is in trouble.} 25. Rfe2 {[%emt 0:00:16]} (25. Rff1 {is a better defense.} Rae8 26. a4) 25... Bxe2 {[%emt 0:03:03] The board is on fire.} 26. Bxe2 {[%emt 0:00:06] [#]} Rae8 $1 {[%emt 0:05:01] And now ...Qg5 would win.} 27. c3 $2 {[%emt 0:02:30]} (27. Bf3 {keeps fighting.}) 27... d3 $2 {[%emt 0:01:56]} (27... Qg5 $19 28. Nh5+ Kg6 29. Nf4+ Kg7 30. Nh5+ Rxh5 31. Bxh5 Qxh5 32. cxd4 Qg5) 28. Qxd3 $2 {[%emt 0:01:12][%mdl 8192]} (28. Nh5+ $11 Kf7 29. Qxd3) 28... Qh1+ {[%emt 0:00:09]} 29. Kf2 {[%emt 0:00:19]} Ng4+ {[%emt 0:00:02] Weighted Error Value: White=0.86/Black=0.71} 0-1

[Event "Germany Countries-chT Youth 2022"]
[Site "Wiesbaden"]
[Date "2022.10.03"]
[Round "5"]
[White "Aniol, Nico"]
[Black "Herrmann, Jakob"]
[Result "0-1"]
[ECO "B22"]
[WhiteElo "1541"]
[BlackElo "1888"]
[Annotator "NA RC COMBH"]
[PlyCount "110"]
[EventDate "2022.09.28"]
[EventType "team-tourn"]
[EventRounds "7"]
[EventCountry "GER"]
[SourceTitle "playchess.com"]
[Source "ChessBase"]
[SourceQuality "1"]
[TimeControl "40/5400+30:1800+30"]

1. e4 {[%emt 0:00:18]} c5 {[%emt 0:00:26]} 2. c3 {[%emt 0:01:42]} d5 {[%emt 0:00:09]} 3. exd5 {[%emt 0:01:20]} Qxd5 {[%emt 0:00:11]} 4. d4 {[%emt 0:01:54]} Nf6 {[%emt 0:00:16]} 5. Nf3 {[%emt 0:01:16]} Bg4 {[%emt 0:00:21]} 6. Be2 {[%emt 0:01:53]} e6 {[%emt 0:01:00]} 7. O-O {[%emt 0:03:22]} Nc6 {[%emt 0:00:51]} 8. h3 {[%emt 0:02:55]} Bh5 {[%emt 0:00:37]} 9. Be3 {[%emt 0:03:42]} cxd4 {[%emt 0:00:35]} 10. cxd4 {[%emt 0:03:01]} Be7 {[%emt 0:01:08]} 11. Nc3 {[%emt 0:00:54]} Qd6 {[%emt 0:00:24]} 12. Qb3 {[%emt 0:04:52]} O-O {[%emt 0:04:41]} 13. Rfd1 {[%emt 0:04:37]} ({Don't play} 13. Qxb7 Rfb8 14. Qa6 Bxf3 15. Bxf3 Nxd4 16. Qxd6 (16. Bb7 Qxa6 17. Bxa6 Nc2 $15) 16... Nxf3+ 17. gxf3 Bxd6 $15) 13... Rfd8 {[%emt 0:03:31]} 14. Rac1 {[%emt 0:06:34]} a6 {[%emt 0:07:27]} (14... Rab8 $11) 15. a3 {[%emt 0:11:34]} ({Not} 15. Qxb7 $2 Na5 16. Bf4 Nxb7 $19) ({White should play} 15. d5 $14 Ne5 16. dxe6 (16. Qxb7 $2 Rdb8 $19) 16... Nxf3+ 17. Bxf3 Qxe6 18. Rxd8+ (18. Bxb7 Bxd1 19. Qxe6 fxe6 $16) (18. Qxb7 Bxf3 19. Qxf3 Rxd1+ 20. Rxd1 Rc8 $16) 18... Rxd8 19. Qxe6 (19. Qxb7 Bxf3 20. Qxf3 h6 $16) (19. Bxb7 Qxb3 20. axb3 a5 $16) 19... fxe6 20. Bxb7) 15... b5 {[%emt 0:05:44]} 16. Qa2 {[%emt 0:18:07]} Rac8 {[%emt 0:06:00]} 17. b4 {[%emt 0:00:54]} h6 {[%emt 0:08:04]} 18. Ne1 {[%emt 0:07:11]} Bxe2 {[%emt 0:03:40]} 19. Qxe2 {[%emt 0:00:07]} Bf8 {[%emt 0:25:23]} 20. f3 {[%emt 0:06:30]} e5 {[%emt 0:08:37]} 21. d5 {[%emt 0:01:58]} Nd4 {[%emt 0:00:13]} 22. Bxd4 {[%emt 0:00:55]} exd4 {[%emt 0:00:06]} 23. Ne4 {[%emt 0:01:40]} Qxd5 {[%emt 0:01:10]} 24. Nxf6+ {[%emt 0:00:06]} gxf6 {[%emt 0:00:05]} 25. Rxc8 $1 {[%emt 0:03:35]} Rxc8 {[%emt 0:00:12]} 26. Rd3 {[%emt 0:00:15]} f5 $19 {[%emt 0:05:54]} 27. Qd2 {[%emt 0:02:48]} Bg7 {[%emt 0:00:09]} 28. Nc2 {[%emt 0:01:28]} Rc4 {[%emt 0:01:04]} 29. Qe2 {[%emt 0:01:58]} Qc6 {[%emt 0:00:41]} 30. Rd2 {[%emt 0:01:03]} Qe6 {[%emt 0:07:34]} 31. Kf2 {[%emt 0:02:33]} Bf6 {[%emt 0:02:05]} 32. Qxe6 {[%emt 0:02:34]} fxe6 {[%emt 0:00:11]} 33. g3 {[%emt 0:01:14]} e5 {[%emt 0:00:52]} 34. Ne1 {[%emt 0:00:56]} e4 {[%emt 0:01:38]} 35. fxe4 {[%emt 0:00:29]} fxe4 {[%emt 0:00:05]} 36. Ra2 {[%emt 0:00:19]} Kf7 {[%emt 0:00:29]} 37. Ng2 {[%emt 0:01:31]} Bg5 {[%emt 0:00:19]} 38. h4 {[%emt 0:00:51]} Bc1 {[%emt 0:02:09]} 39. Nf4 {[%emt 0:00:26]} Bxf4 {[%emt 0:00:26]} 40. gxf4 {[%emt 0:00:04]} Kf6 {[%emt 0:00:10]} 41. a4 {[%emt 0:01:34]} d3 {[%emt 0:02:02]} 42. Ke3 {[%emt 0:00:42]} Rc2 {[%emt 0:00:07]} 43. Ra1 {[%emt 0:00:32]} Re2+ {[%emt 0:00:08]} 44. Kd4 {[%emt 0:00:05]} d2 {[%emt 0:00:26]} 45. Rd1 {[%emt 0:00:18]} e3 {[%emt 0:00:17]} 46. axb5 {[%emt 0:00:41]} Re1 {[%emt 0:00:57]} 47. b6 {[%emt 0:00:13]} Rxd1 {[%emt 0:00:05]} 48. b7 {[%emt 0:00:02]} Rc1 {[%emt 0:00:12]} 49. b8=Q {[%emt 0:00:28]} d1=Q+ {[%emt 0:00:07]} 50. Ke4 {[%emt 0:00:53]} Rc4+ {[%emt 0:00:09]} 51. Kxe3 {[%emt 0:00:04]} Qd4+ {[%emt 0:00:07]} 52. Kf3 {[%emt 0:00:12]} Rc3+ {[%emt 0:00:25]} 53. Ke2 {[%emt 0:00:28]} Qe3+ {[%emt 0:00:24]} 54. Kf1 {[%emt 0:00:10]} Rc1+ {[%emt 0:00:07]} 55. Kg2 {[%emt 0:00:04]} Rg1+ {[%emt 0:00:05]} 0-1

[Event "Germany Countries-chT Youth 2022"]
[Site "Wiesbaden"]
[Date "2022.10.03"]
[Round "5"]
[White "Skembris, Simon Max"]
[Black "Braeutigam, Katerina"]
[Result "1/2-1/2"]
[ECO "B19"]
[WhiteElo "1540"]
[BlackElo "1873"]
[Annotator "NA RC COMBH"]
[PlyCount "122"]
[EventDate "2022.09.28"]
[EventType "team-tourn"]
[EventRounds "7"]
[EventCountry "GER"]
[SourceTitle "playchess.com"]
[Source "ChessBase"]
[SourceQuality "1"]
[TimeControl "40/5400+30:1800+30"]

1. e4 {[%emt 0:00:03]} c6 {[%emt 0:00:03]} 2. d4 {[%emt 0:00:06]} d5 {[%emt 0:00:07]} 3. Nc3 {[%emt 0:00:06]} dxe4 {[%emt 0:00:10]} 4. Nxe4 {[%emt 0:00:08]} Bf5 {[%emt 0:00:06]} 5. Ng3 {[%emt 0:00:07]} Bg6 {[%emt 0:00:07]} 6. h4 {[%emt 0:00:06]} h6 {[%emt 0:00:04]} 7. Nf3 {[%emt 0:00:08]} Nd7 {[%emt 0:00:06]} 8. h5 {[%emt 0:00:11]} Bh7 {[%emt 0:00:04]} 9. Bd3 {[%emt 0:00:19]} Bxd3 {[%emt 0:00:04]} 10. Qxd3 {[%emt 0:00:05]} e6 {[%emt 0:00:07]} 11. Bd2 {[%emt 0:00:44]} Ngf6 {[%emt 0:00:07]} 12. O-O-O {[%emt 0:00:42]} Be7 {[%emt 0:00:07]} 13. Kb1 {[%emt 0:00:32]} O-O {[%emt 0:00:08]} 14. Ne4 {[%emt 0:00:53]} Nxe4 {[%emt 0:00:07]} 15. Qxe4 {[%emt 0:00:03]} Nf6 {[%emt 0:00:10]} 16. Qe2 {[%emt 0:00:46]} Qd5 {[%emt 0:00:11]} 17. Ne5 {[%emt 0:01:15]} Qe4 {[%emt 0:02:04]} 18. Qxe4 {[%emt 0:00:11]} Nxe4 {[%emt 0:00:06]} 19. Be1 {[%emt 0:00:24]} Rfd8 {[%emt 0:15:46]} 20. f3 {[%emt 0:01:40]} Nf6 {[%emt 0:01:59]} 21. g4 {[%emt 0:03:44]} Nd7 {[%emt 0:20:38]} 22. Bg3 {[%emt 0:08:16]} Bd6 {[%emt 0:12:15]} 23. Bh4 {[%emt 0:05:30]} f6 {[%emt 0:06:46]} 24. Nxd7 {[%emt 0:04:44]} Rxd7 {[%emt 0:00:14]} 25. Rhe1 {[%emt 0:01:23]} Kf7 {[%emt 0:02:14]} 26. c3 {[%emt 0:01:46]} Bc7 {[%emt 0:10:50]} 27. Kc2 {[%emt 0:01:55]} Rad8 {[%emt 0:00:33]} 28. Bf2 {[%emt 0:04:38]} a6 {[%emt 0:06:03]} 29. Re2 {[%emt 0:05:03]} Bf4 {[%emt 0:08:17]} (29... c5 $11) 30. Be3 {[%emt 0:07:12]} Bxe3 {[%emt 0:02:49]} 31. Rxe3 {[%emt 0:00:07]} e5 {[%emt 0:03:24]} 32. Red3 {[%emt 0:01:22]} exd4 {[%emt 0:00:39]} 33. Rxd4 {[%emt 0:01:31]} Rxd4 {[%emt 0:00:15]} 34. Rxd4 {[%emt 0:01:07]} Rxd4 {[%emt 0:00:09]} 35. cxd4 {[%emt 0:00:06]} f5 {[%emt 0:06:27]} 36. Kd3 {[%emt 0:01:58]} Kf6 {[%emt 0:01:05]} 37. Kc4 {[%emt 0:04:59]} b6 {[%emt 0:03:32]} 38. a4 {[%emt 0:00:45]} fxg4 $11 {[%emt 0:00:56]} 39. fxg4 {[%emt 0:00:17]} Ke6 {[%emt 0:00:35]} 40. a5 {[%emt 0:02:28]} bxa5 {[%emt 0:00:18]} 41. Kc5 {[%emt 0:30:31]} Kd7 {[%emt 0:30:31]} 42. b3 {[%emt 0:08:28]} Kc7 {[%emt 0:00:00]} 43. d5 {[%emt 0:00:00]} cxd5 {[%emt 0:00:00]} 44. Kxd5 {[%emt 0:00:00]} Kd7 {[%emt 0:00:00]} 45. Kc5 {[%emt 0:00:00]} Kc7 {[%emt 0:00:00]} 46. Kd5 {[%emt 0:00:00]} Kd7 {[%emt 0:00:00]} 47. Ke5 {[%emt 0:00:00]} Ke7 {[%emt 0:00:00]} 48. Kf5 {[%emt 0:00:00]} Kf7 {[%emt 0:00:00]} 49. g5 {[%emt 0:00:00]} hxg5 {[%emt 0:00:00]} 50. Kxg5 {[%emt 0:00:00]} Ke7 {[%emt 0:00:14]} 51. Kg6 {[%emt 0:00:00]} Kf8 {[%emt 0:00:07]} 52. h6 {[%emt 0:00:00]} gxh6 {[%emt 0:00:08]} 53. Kxh6 {[%emt 0:00:00]} Ke7 {[%emt 0:00:10]} 54. Kg5 {[%emt 0:00:00]} Kd6 {[%emt 0:00:20]} 55. Kf4 {[%emt 0:00:00]} Kc5 {[%emt 0:05:03]} 56. Ke3 {[%emt 0:00:00]} Kb4 {[%emt 0:00:18]} 57. Kd2 {[%emt 0:00:00]} Ka3 {[%emt 0:01:31]} 58. Kc1 {[%emt 0:00:00]} Ka2 {[%emt 0:00:13]} 59. Kc2 {[%emt 0:00:00]} Ka1 {[%emt 0:00:16]} 60. Kc1 {[%emt 0:00:00]} Ka2 {[%emt 0:00:21]} 61. Kc2 {[%emt 0:00:00]} Ka1 {[%emt 0:01:17]} 1/2-1/2

[Event "Germany Countries-chT Youth 2022"]
[Site "Wiesbaden"]
[Date "2022.10.03"]
[Round "5"]
[White "Noennig, Jakob"]
[Black "Dohon, Maria-Johanna"]
[Result "1-0"]
[ECO "B15"]
[WhiteElo "1510"]
[BlackElo "1430"]
[Annotator "NA RC COMBH"]
[PlyCount "81"]
[EventDate "2022.09.28"]
[EventType "team-tourn"]
[EventRounds "7"]
[EventCountry "GER"]
[SourceTitle "playchess.com"]
[Source "ChessBase"]
[SourceQuality "1"]
[TimeControl "40/5400+30:1800+30"]

1. e4 {[%emt 0:00:02]} c6 {[%emt 0:00:06]} 2. d4 {[%emt 0:00:11]} d5 {[%emt 0:00:06]} 3. Nd2 {[%emt 0:00:15]} dxe4 {[%emt 0:00:05]} 4. Nxe4 {[%emt 0:00:15]} Nf6 {[%emt 0:00:05]} 5. Nxf6+ {[%emt 0:00:13]} exf6 {[%emt 0:00:07]} 6. c3 {[%emt 0:00:15]} Bd6 {[%emt 0:00:05]} 7. Bd3 {[%emt 0:00:21]} O-O {[%emt 0:00:11]} 8. Qc2 {[%emt 0:00:20]} Re8+ {[%emt 0:00:07]} 9. Ne2 {[%emt 0:00:18]} h5 {[%emt 0:00:07]} 10. Be3 {[%emt 0:00:18]} Nd7 {[%emt 0:00:10]} 11. O-O-O {[%emt 0:00:59]} Nf8 {[%emt 0:00:19]} 12. c4 {[%emt 0:01:00]} Be6 {[%emt 0:03:44]} 13. Kb1 {[%emt 0:00:54]} Rc8 {[%emt 0:03:28]} 14. Nc3 {[%emt 0:03:16]} b5 {[%emt 0:25:22]} 15. cxb5 {[%emt 0:15:09]} cxb5 {[%emt 0:01:02]} 16. Bxb5 {[%emt 0:03:07]} Re7 {[%emt 0:04:31]} 17. d5 {[%emt 0:02:01]} Bd7 {[%emt 0:00:59]} 18. Bxd7 {[%emt 0:00:46]} Rxd7 {[%emt 0:01:51]} 19. Qf5 {[%emt 0:08:18]} g6 {[%emt 0:04:39]} 20. Qd3 {[%emt 0:02:41]} Rb7 {[%emt 0:06:52]} 21. Bd4 {[%emt 0:10:21]} Nd7 {[%emt 0:06:03]} 22. Qa6 {[%emt 0:08:23]} Qc7 {[%emt 0:06:21]} 23. Ka1 {[%emt 0:23:59]} Rcb8 {[%emt 0:11:15]} 24. Rd2 {[%emt 0:10:12]} f5 25. Qc6 {[%emt 0:01:15]} Ne5 {[%emt 0:13:21]} 26. Qxc7 {[%emt 0:01:25]} Rxc7 {[%emt 0:02:28]} 27. Re1 {[%emt 0:03:38]} Nc4 {[%emt 0:03:14]} 28. Rde2 {[%emt 0:00:11]} Kf8 {[%emt 0:02:19]} 29. Nb5 {[%emt 0:01:07]} Rd7 {[%emt 0:02:20]} 30. Nxa7 {[%emt 0:01:39]} Ra8 {[%emt 0:01:27]} 31. Nc6 {[%emt 0:00:58]} Rb7 {[%emt 0:01:44]} 32. g3 {[%emt 0:01:35]} Nb6 {[%emt 0:01:12]} 33. Na5 {[%emt 0:00:43]} Rbb8 {[%emt 0:00:37]} 34. Bxb6 {[%emt 0:00:36]} Rxb6 {[%emt 0:00:06]} 35. Nc4 {[%emt 0:00:19]} Rba6 {[%emt 0:00:19]} 36. Nxd6 {[%emt 0:00:12]} Rxd6 {[%emt 0:00:28]} 37. Rd1 {[%emt 0:00:24]} Rda6 {[%emt 0:01:02]} 38. b4 {[%emt 0:00:24]} Rd6 {[%emt 0:00:41]} 39. Rd3 {[%emt 0:01:11]} Rc8 {[%emt 0:00:27]} 40. Rd4 {[%emt 0:00:35]} Rc7 {[%emt 0:00:33]} 41. a4 {[%emt 0:30:21]} 1-0

[Event "Germany Countries-chT Youth 2022"]
[Site "Wiesbaden"]
[Date "2022.10.03"]
[Round "5"]
[White "Goepfert, Gregor"]
[Black "Koepnick, Amanda"]
[Result "1-0"]
[ECO "C54"]
[WhiteElo "1480"]
[BlackElo "1244"]
[Annotator "NA RC COMBH"]
[PlyCount "109"]
[EventDate "2022.09.28"]
[EventType "team-tourn"]
[EventRounds "7"]
[EventCountry "GER"]
[SourceTitle "playchess.com"]
[Source "ChessBase"]
[SourceQuality "1"]
[TimeControl "40/5400+30:1800+30"]

1. e4 {[%emt 0:00:02]} e5 {[%emt 0:00:09]} 2. Nf3 {[%emt 0:00:06]} Nc6 {[%emt 0:00:18]} 3. Bc4 {[%emt 0:00:05]} Bc5 {[%emt 0:00:12]} 4. c3 {[%emt 0:00:05]} Nf6 {[%emt 0:00:19]} 5. d3 {[%emt 0:00:06]} h6 {[%emt 0:00:59]} 6. Nbd2 {[%emt 0:02:02]} d6 {[%emt 0:01:30]} 7. Nf1 {[%emt 0:01:48]} O-O {[%emt 0:03:10]} 8. Ng3 {[%emt 0:02:52]} Re8 {[%emt 0:04:46]} 9. O-O {[%emt 0:00:48]} Be6 {[%emt 0:05:40]} 10. Bxe6 {[%emt 0:02:17]} fxe6 {[%emt 0:01:57]} 11. d4 {[%emt 0:02:05]} Bb6 {[%emt 0:02:56]} 12. dxe5 {[%emt 0:01:13]} Nxe5 {[%emt 0:03:04]} 13. Nxe5 {[%emt 0:00:17]} dxe5 {[%emt 0:00:14]} 14. Qe2 {[%emt 0:02:21]} Qe7 {[%emt 0:03:46]} 15. a4 {[%emt 0:02:26]} a6 {[%emt 0:03:29]} 16. a5 {[%emt 0:01:58]} Ba7 {[%emt 0:00:26]} 17. Be3 {[%emt 0:05:16]} Qf7 {[%emt 0:02:25]} 18. Bxa7 {[%emt 0:01:19]} Rxa7 {[%emt 0:00:14]} 19. Qe3 {[%emt 0:00:20]} Raa8 {[%emt 0:01:00]} 20. Qc5 {[%emt 0:00:26]} Qe7 {[%emt 0:12:30]} 21. Qxe5 {[%emt 0:03:31]} Qd6 {[%emt 0:00:39]} 22. Qxd6 {[%emt 0:00:32]} cxd6 {[%emt 0:00:14]} 23. Rfd1 {[%emt 0:00:37]} Red8 {[%emt 0:02:03]} 24. Ra4 {[%emt 0:00:24]} Rd7 {[%emt 0:02:25]} 25. e5 {[%emt 0:00:47]} dxe5 {[%emt 0:01:06]} 26. Rxd7 {[%emt 0:00:30]} Nxd7 {[%emt 0:00:18]} 27. Rb4 {[%emt 0:02:06]} Rb8 {[%emt 0:01:13]} 28. Ne4 {[%emt 0:00:51]} b5 {[%emt 0:05:00]} 29. axb6 {[%emt 0:00:18]} Rxb6 {[%emt 0:00:23]} 30. Rxb6 {[%emt 0:00:17]} Nxb6 {[%emt 0:00:09]} 31. Nc5 {[%emt 0:00:15]} a5 {[%emt 0:03:19]} 32. Nxe6 {[%emt 0:01:50]} Kf7 {[%emt 0:03:58]} 33. Nc5 {[%emt 0:00:44]} Ke7 {[%emt 0:02:22]} 34. Kf1 {[%emt 0:02:04]} a4 {[%emt 0:02:03]} 35. Ke2 {[%emt 0:09:19]} Kd6 {[%emt 0:00:30]} 36. Ne4+ {[%emt 0:04:15]} Kd5 {[%emt 0:02:09]} 37. Nd2 {[%emt 0:01:09]} Nc4 {[%emt 0:02:38]} 38. Nxc4 {[%emt 0:00:15]} Kxc4 {[%emt 0:00:15]} 39. Kd2 {[%emt 0:00:21]} Kb3 {[%emt 0:02:25]} 40. Kc1 {[%emt 0:00:14]} e4 {[%emt 0:02:58]} 41. g4 {[%emt 0:31:11]} g5 {[%emt 0:36:10]} 42. h3 {[%emt 0:00:16]} Kc4 {[%emt 0:01:18]} 43. Kc2 {[%emt 0:00:33]} Kb5 {[%emt 0:01:15]} 44. b3 {[%emt 0:00:36]} axb3+ {[%emt 0:02:24]} 45. Kxb3 {[%emt 0:00:07]} Kc5 {[%emt 0:02:04]} 46. c4 {[%emt 0:00:23]} Kc6 {[%emt 0:01:17]} 47. Kb4 {[%emt 0:00:14]} Kd6 {[%emt 0:09:09]} 48. c5+ {[%emt 0:00:12]} Kd7 {[%emt 0:02:03]} 49. Kb5 Kc7 {[%emt 0:01:26]} 50. c6 {[%emt 0:00:45]} Kc8 {[%emt 0:01:00]} 51. Kc5 {[%emt 0:00:13]} Kc7 {[%emt 0:00:32]} 52. Kd5 {[%emt 0:00:08]} Kc8 {[%emt 0:01:02]} 53. Kxe4 {[%emt 0:00:07]} Kc7 {[%emt 0:00:16]} 54. Kd5 {[%emt 0:00:12]} Kc8 {[%emt 0:00:49]} 55. Ke6 {[%emt 0:00:10]} 1-0